lending/lending_fUSD_20251107
["ID","MTS","AMOUNT","RATE_DAILY","PERIOD"]
[393364043,1762529598982,500.0,0.00016831,2]
[393364044,1762529616520,213.73871137,0.00016831,2]
[393364084,1762529701880,300.0,0.00016831,2]
[393364085,1762529702057,1200.0,0.00016831,2]
[393364086,1762529727870,194.70479847,0.00016831,2]
[393364087,1762529744735,2000.0,0.00039026,30]
[393364089,1762529750364,2000.0,0.00039026,30]
[393364090,1762529753478,2000.0,0.00039026,30]
[393364091,1762529757794,2949.53157066,0.00016831,2]
[393364092,1762529761794,300.0,0.00016831,2]
[393364116,1762529764366,2000.0,0.00039026,30]
[393364119,1762529770515,2000.0,0.00039026,30]
[393364120,1762529775214,2000.0,0.00039026,30]
[393364121,1762529789480,164.12115882,0.00016831,2]
[393364123,1762529854790,563.36,0.00013699,2]
[393364124,1762529861907,1010.0,0.00016831,2]
[393364125,1762529881927,500.0,0.00039026,120]
[393364126,1762529882199,300.0,0.00016831,2]
[393364127,1762529895073,2000.0,0.00039026,30]
[393364165,1762529915195,2000.0,0.00039026,30]
[393364170,1762530001704,300.0,0.00016831,2]
[393364172,1762530003763,280.9053583,0.00016831,2]
[393364173,1762530003787,919.0946417,0.00016831,2]
[393364174,1762530007449,2477.17,0.00016822,2]
[393364221,1762530053969,2000.0,0.00039025,30]
[393364222,1762530054018,2000.0,0.00039025,30]
[393364224,1762530062391,300.0,0.00016831,2]
[393364225,1762530075878,2000.0,0.00039025,30]
[393364227,1762530076060,2000.0,0.00039025,30]
[393364231,1762530097759,2000.0,0.00039025,30]
[393364234,1762530104696,999.0,0.00017027,3]
[393364237,1762530117746,2000.0,0.00039025,30]
[393364240,1762530137566,2000.0,0.00039025,30]
[393364241,1762530144070,2654.57841363,0.00016831,2]
[393364245,1762530158204,194.70479846,0.00016831,2]
[393364249,1762530176637,2000.0,0.00039025,30]
[393364250,1762530182296,300.0,0.00016831,2]
[393364251,1762530196737,2000.0,0.00039025,30]
[393364252,1762530215651,2000.0,0.00039025,30]
[393364257,1762530251809,2000.0,0.00039025,30]
[393364258,1762530271726,2000.0,0.00039025,30]
[393364259,1762530284715,495.51437203,0.00016831,2]
[393364260,1762530301752,1200.0,0.00016831,2]
[393364261,1762530304556,300.0,0.00016831,2]
[393364262,1762530317703,500.0,0.00016831,2]
[393364263,1762530348935,500.0,0.00016831,2]
[393364264,1762530361978,158.94777418,0.00016831,2]
[393364265,1762530362011,141.05222582,0.00016831,2]
[393364266,1762530383835,500.0,0.00016831,2]
[393364267,1762530395788,500.0,0.00016438,2]
[393364268,1762530396091,500.0,0.00016438,2]
[393364269,1762530396360,500.0,0.00016438,2]
[393364270,1762530396651,500.0,0.00016438,2]
[393364271,1762530396935,500.0,0.00016438,2]
[393364272,1762530397207,500.0,0.00016438,2]
[393364273,1762530397507,500.0,0.00016438,2]
[393364274,1762530397803,500.0,0.00016438,2]
[393364275,1762530412982,500.0,0.00016831,2]
[393364276,1762530425954,151.0,0.00016832,2]
[393364277,1762530426588,151.0,0.00016832,2]
[393364278,1762530427243,151.0,0.00016832,2]
[393364279,1762530427844,151.0,0.00016832,2]
[393364280,1762530428481,151.0,0.00016832,2]
[393364281,1762530429132,151.0,0.00016832,2]
[393364282,1762530429775,151.0,0.00016832,2]
[393364283,1762530430906,151.0,0.00016832,2]
[393364284,1762530431548,151.0,0.00016832,2]
[393364285,1762530432056,151.0,0.00016832,2]
[393364286,1762530432217,151.0,0.00016832,2]
[393364287,1762530432246,238.90518122,0.00016832,2]
[393364288,1762530432275,734.80013763,0.00016832,2]
[393364289,1762530432520,151.0,0.00016832,2]
[393364290,1762530432848,151.0,0.00016832,2]
[393364291,1762530433172,151.0,0.00016832,2]
[393364292,1762530433511,151.0,0.00016832,2]
[393364293,1762530433791,151.0,0.00016832,2]
[393364294,1762530434185,151.0,0.00016832,2]
[393364295,1762530434530,151.0,0.00016832,2]
[393364296,1762530434781,238.90518122,0.00016832,2]
[393364297,1762530434899,928.34727411,0.00016832,2]
[393364298,1762530434924,173.85293234,0.00016832,2]
[393364299,1762530435355,151.0,0.00016832,2]
[393364300,1762530435387,151.0,0.00016832,2]
[393364301,1762530435804,151.0,0.00016832,2]
[393364302,1762530435885,551.10010323,0.00016832,2]
[393364303,1762530435915,151.0,0.00016832,2]
[393364304,1762530436441,151.0,0.00016832,2]
[393364305,1762530436600,261.92709679,0.00016832,2]
[393364306,1762530436889,275.55005161,0.00016832,2]
[393364307,1762530437170,151.0,0.00016832,2]
[393364308,1762530437792,151.0,0.00016832,2]
[393364309,1762530438442,151.0,0.00016832,2]
[393364310,1762530439059,151.0,0.00016832,2]
[393364311,1762530445062,500.0,0.00016438,2]
[393364312,1762530445116,500.0,0.00016438,2]
[393364313,1762530446451,500.0,0.00016438,2]
[393364314,1762530446753,500.0,0.00016438,2]
[393364315,1762530447097,-500.0,0.00016438,2]
[393364316,1762530450147,-500.0,0.00016438,2]
[393364317,1762530450177,-500.0,0.00016438,2]
[393364318,1762530450207,-500.0,0.00016438,2]
[393364319,1762530450236,-250.0,0.00016811,2]
[393364320,1762530450272,-500.0,0.00016831,2]
[393364321,1762530462784,-3514.74674542,0.00016832,2]
[393364322,1762530465284,-10000.01,0.00016832,2]
[393364323,1762530465452,-20000.0,0.00016832,2]
[393364324,1762530465529,-10000.01,0.00016832,2]
[393364325,1762530466505,-20000.0,0.00016832,2]
[393364326,1762530467566,-20000.0,0.00016832,2]
[393364327,1762530468309,-20000.0,0.00016832,2]
[393364328,1762530469265,-20000.0,0.00016832,2]
[393364329,1762530470236,-20000.0,0.00016832,2]
[393364330,1762530472017,-20000.0,0.00016832,2]
[393364331,1762530472738,-20000.0,0.00016832,2]
[393364332,1762530473148,-20000.0,0.00016832,2]
[393364333,1762530473550,-20000.0,0.00016832,2]
[393364334,1762530474897,-20000.0,0.00016832,2]
[393364335,1762530475352,-20000.0,0.00016832,2]
[393364336,1762530476457,-20000.0,0.00016832,2]
[393364337,1762530477597,-20000.0,0.00016832,2]
[393364338,1762530477811,500.0,0.00016831,2]
[393364339,1762530481324,-10000.0,0.00016832,2]
[393364340,1762530481963,300.0,0.00016831,2]
[393364341,1762530483608,-9200.01,0.00016832,2]
[393364342,1762530483634,-10000.01,0.00016832,2]
[393364343,1762530483766,-10000.01,0.00016832,2]
[393364344,1762530483919,-3714.87674542,0.00016832,2]
[393364345,1762530484137,-2570.25650916,0.00016832,2]
[393364346,1762530484482,-500.0,0.00016931,2]
[393364347,1762530484514,-500.0,0.00016931,2]
[393364348,1762530484544,-500.0,0.00016931,2]
[393364349,1762530484574,-342.52502965,0.00016931,2]
[393364350,1762530484609,-500.0,0.00016931,2]
[393364351,1762530484639,-500.0,0.00016931,2]
[393364352,1762530484670,-500.0,0.00016931,2]
[393364353,1762530484701,-500.0,0.00016931,2]
[393364354,1762530484730,-500.0,0.00016931,2]
[393364355,1762530484760,-500.0,0.00016931,2]
[393364356,1762530484878,-500.0,0.00016931,2]
[393364357,1762530484914,-500.0,0.00016931,2]
[393364358,1762530484951,-500.0,0.00016931,2]
[393364359,1762530484987,-500.0,0.00016931,2]
[393364360,1762530485023,-500.0,0.00016931,2]
[393364361,1762530485061,-500.0,0.00016931,2]
[393364362,1762530485101,-500.0,0.00016931,2]
[393364363,1762530485136,-500.0,0.00016931,2]
[393364364,1762530485173,-500.0,0.00016931,2]
[393364365,1762530485207,-500.0,0.00016931,2]
[393364366,1762530485561,-314.9599407,0.00016931,2]
[393364367,1762530485581,-0.01,0.00016931,2]
[393364368,1762530486549,-185.0300593,0.00016931,2]
[393364369,1762530486586,-500.0,0.00016931,2]
[393364370,1762530486624,-500.0,0.00016931,2]
[393364371,1762530486658,-500.0,0.00016931,2]
[393364372,1762530486692,-500.0,0.00016931,2]
[393364373,1762530486739,-500.0,0.00016931,2]
[393364374,1762530486775,-500.0,0.00016931,2]
[393364375,1762530486809,-500.0,0.00016931,2]
[393364376,1762530486845,-500.0,0.00016931,2]
[393364377,1762530486880,-500.0,0.00016931,2]
[393364378,1762530486915,-129.9498814,0.00016931,2]
[393364379,1762530487115,-370.0501186,0.00016931,2]
[393364380,1762530489608,-500.0,0.00016931,2]
[393364381,1762530489647,-500.0,0.00016931,2]
[393364382,1762530489682,-333.15845266,0.00016931,2]
[393364383,1762530489717,-500.0,0.00016931,2]
[393364384,1762530489751,-500.0,0.00016931,2]
[393364385,1762530489786,-500.0,0.00016931,2]
[393364386,1762530489824,-500.0,0.00016931,2]
[393364387,1762530489862,-500.0,0.00016931,2]
[393364388,1762530489963,-4359.91,0.00016999,2]
[393364389,1762530490040,-1280.19,0.00016999,2]
[393364390,1762530490073,-200.0,0.00017066,2]
[393364391,1762530523129,-500.0,0.00016831,2]
[393364392,1762530523167,-9000.01,0.0001688,2]
[393364393,1762530523398,-10000.01,0.0001688,2]
[393364394,1762530523546,-10000.01,0.0001688,2]
[393364395,1762530523667,-10000.01,0.0001688,2]
[393364396,1762530525988,-10000.01,0.0001688,2]
[393364397,1762530534276,158.75,8.704e-05,2]
[393364398,1762530534849,158.75,9.301e-05,2]
[393364399,1762530534890,158.75,9.898e-05,2]
[393364400,1762530535018,-10000.01,0.0001688,2]
[393364401,1762530535254,158.75,0.00010496,2]
[393364402,1762530535470,158.75,0.00011093,2]
[393364403,1762530535695,158.75,0.0001169,2]
[393364404,1762530535907,158.75,0.00012288,2]
[393364405,1762530536174,158.75,0.00012885,2]
[393364406,1762530536373,158.75,0.00013482,2]
[393364407,1762530536579,158.75,0.0001408,2]
[393364408,1762530536774,158.75,0.00014677,2]
[393364409,1762530537000,158.75,0.00015274,2]
[393364410,1762530537200,95.0,0.00015872,2]
[393364412,1762530544147,-63.75,0.00015872,2]
[393364413,1762530544179,-158.75,0.00016469,2]
[393364414,1762530544210,-300.0,0.00016662,2]
[393364415,1762530544240,-300.0,0.00016662,2]
[393364416,1762530544271,-225.381,0.00016732,2]
[393364417,1762530544303,-300.0,0.00016879,2]
[393364418,1762530544435,-7304.248,0.0001688,2]
[393364419,1762530568959,50000.0,0.00039025,30]
[393364435,1762530632379,-173.62150407,0.00016632,2]
[393364436,1762530632389,-300.0,0.00016731,2]
[393364437,1762530632398,-1200.0,0.00016731,2]
[393364438,1762530632408,-300.0,0.00016731,2]
[393364439,1762530632420,-1000.0,0.00016732,2]
[393364440,1762530632430,-100628.63752788,0.00016732,2]
[393364452,1762530638120,-557.24947596,0.00016731,2]
[393364453,1762530638131,-263.47969116,0.00016731,2]
[393364454,1762530638144,-236.52030884,0.00016731,2]
[393364455,1762530638154,-500.0,0.00016731,2]
[393364456,1762530638165,-500.0,0.00016731,2]
[393364457,1762530638175,-500.0,0.00016731,2]
[393364458,1762530638184,-500.0,0.00016731,2]
[393364459,1762530638194,-500.0,0.00016731,2]
[393364460,1762530638204,-500.0,0.00016731,2]
[393364461,1762530638214,-500.0,0.00016731,2]
[393364462,1762530638224,-617.0731826,0.00016731,2]
[393364463,1762530638238,-500.0,0.00016731,2]
[393364464,1762530638248,-68521.50396554,0.00016732,2]
[393364465,1762530638269,-4976.23277107,0.00016732,2]
[393364466,1762530638281,-345.58433897,0.00016732,2]
[393364467,1762530638294,-361.29414,0.00016732,2]
[393364468,1762530638306,-479.174623,0.00016732,2]
[393364469,1762530638322,-10300.49455997,0.00016732,2]
[393364485,1762530640163,-2702.99170041,0.00016732,2]
[393364516,1762530640452,-21737.32965762,0.00016732,2]
[393364517,1762530640467,-6732.11709964,0.00016732,2]
[393364518,1762530640478,-43241.14525342,0.00016732,2]
[393364520,1762530640493,-300.35996914,0.00016732,2]
[393364522,1762530640504,-10715.75222652,0.00016732,2]
[393364528,1762530640534,-2330.67545473,0.00016732,2]
[393364531,1762530640546,-252.636388,0.00016732,2]
[393364535,1762530640557,-2542.97031152,0.00016732,2]
[393364538,1762530640568,-16419.80863721,0.00016732,2]
[393364541,1762530640579,-2987.2,0.00016732,2]
[393364580,1762530643211,-720.45436137,0.00016732,2]
[393364589,1762530643433,-273.1608,0.00016732,2]
[393364590,1762530643444,-11695.51097194,0.00016732,2]
[393364591,1762530643505,-111734.96524205,0.00016732,2]
[393364592,1762530643514,-711.1423,0.00016732,2]
[393364593,1762530643523,-2500.0,0.00016732,2]
[393364594,1762530643533,-2775.27055622,0.00016793,2]
[393364595,1762530643542,-500.0,0.00016873,2]
[393364596,1762530643552,-356968.3376857,0.0001688,2]
[393364597,1762530643561,-5332.6864995,0.00016893,2]
[393364598,1762530643571,-5398.6175069,0.00016893,2]
[393364599,1762530643580,-2775.27055622,0.00016916,2]
[393364600,1762530643589,-216.11,0.00016921,2]
[393364601,1762530643599,-254.0,0.00016977,2]
[393364602,1762530643609,-2550.00706484,0.00017022,2]
[393364603,1762530643618,-2775.27055622,0.00017039,2]
[393364604,1762530643627,-158.75,0.00017066,2]
[393364605,1762530643637,-254.0,0.00017077,2]
[393364606,1762530643646,-254.0,0.00017098,2]
[393364607,1762530643656,-2550.00706478,0.0001712,2]
[393364608,1762530643665,-5658.5,0.00017122,2]
[393364609,1762530643675,-254.0,0.00017147,2]
[393364610,1762530643684,-2775.27055622,0.00017162,2]
[393364611,1762530643693,-254.0,0.00017215,2]
[393364612,1762530643702,-2550.00706478,0.00017217,2]
[393364613,1762530643711,-173.62150407,0.00017266,2]
[393364614,1762530643721,-2775.27055622,0.00017285,2]
[393364615,1762530643730,-254.0,0.00017301,2]
[393364616,1762530643744,-2550.00706478,0.00017315,2]
[393364617,1762530643753,-176.94,0.0001737,2]
[393364618,1762530643762,-2775.27055622,0.00017408,2]
[393364619,1762530643772,-2550.00706478,0.00017412,2]
[393364620,1762530643782,-1000.0,0.00017421,2]
[393364621,1762530643792,-195.0,0.00017459,2]
[393364622,1762530643801,-300.0,0.00017459,2]
[393364623,1762530643811,-2550.00706478,0.0001751,2]
[393364624,1762530643820,-708.9,0.00017526,2]
[393364625,1762530643829,-2775.27055622,0.00017531,2]
[393364626,1762530643839,-893.58488772,0.00017558,2]
[393364627,1762530643848,-2550.00706478,0.00017607,2]
[393364628,1762530643858,-2775.27055622,0.00017654,2]
[393364629,1762530643868,-221.75791629,0.00017664,2]
[393364630,1762530643879,-2550.00706478,0.00017705,2]
[393364631,1762530643888,-254.0,0.0001773,2]
[393364632,1762530643898,-2775.27055622,0.00017777,2]
[393364633,1762530643907,-2550.00706478,0.00017802,2]
[393364634,1762530643917,-254.0,0.00017818,2]
[393364635,1762530643926,-254.0,0.00017825,2]
[393364636,1762530643936,-200.0,0.00017856,2]
[393364637,1762530643945,-1000.0,0.000179,2]
[393364638,1762530643956,-2550.00706478,0.000179,2]
[393364639,1762530643965,-2622.53289216,0.000179,2]
[393364640,1762530643975,-2775.27055622,0.000179,2]
[393364641,1762530643984,-173.62150407,0.000179,2]
[393364642,1762530643999,-500.0,0.00017945,2]
[393364643,1762530644008,-181.37299051,0.00017945,2]
[393364644,1762530644018,-150.0,0.00017945,2]
[393364645,1762530644027,-500.0,0.00017945,2]
[393364646,1762530644037,-1500.0,0.00017968,2]
[393364647,1762530644047,-500.0,0.00017973,2]
[393364648,1762530644057,-500.0,0.00017973,2]
[393364649,1762530644068,-500.0,0.00017973,2]
[393364650,1762530644077,-500.0,0.00017973,2]
[393364651,1762530644090,-500.0,0.00017973,2]
[393364652,1762530644100,-500.0,0.00017973,2]
[393364653,1762530644109,-500.0,0.00017973,2]
[393364654,1762530644119,-500.0,0.00017973,2]
[393364655,1762530644128,-500.0,0.00017973,2]
[393364656,1762530644139,-500.0,0.00017973,2]
[393364657,1762530644148,-500.0,0.00017973,2]
[393364658,1762530644159,-500.0,0.00017973,2]
[393364659,1762530644171,-500.0,0.00017973,2]
[393364660,1762530644182,-1962.0,0.00017986,2]
[393364661,1762530644192,-346.911421,0.00017986,2]
[393364662,1762530644202,-1852.5808473,0.00017986,2]
[393364663,1762530644212,-358127.1422322,0.00017986,2]
[393364664,1762530644223,-18277.3921859,0.00017986,2]
[393364665,1762530644233,-13741.32371694,0.00017986,2]
[393364668,1762530646683,-150.0,0.00016521,2]
[393364669,1762530646693,-254.0,0.0001736,2]
[393364670,1762530646703,-9407.55395495,0.00017986,2]
[393364671,1762530646715,-1265.55639731,0.00017986,2]
[393364672,1762530646727,-15476.0601768,0.00017986,2]
[393364674,1762530646741,-9806.89400015,0.00017986,2]
[393364677,1762530646752,-553.59499917,0.00017986,2]
[393364679,1762530646764,-6504.76659109,0.00017986,2]
[393364681,1762530646775,-389.40959693,0.00017986,2]
[393364683,1762530646786,-10682.82479664,0.00017986,2]
[393364745,1762530661153,-254.0,0.00017151,2]
[393364746,1762530661201,-254.0,0.00017372,2]
[393364747,1762530661247,-254.0,0.00017724,2]
[393364748,1762530661301,-19395.17729982,0.00017986,2]
[393364749,1762530661346,-151.0,0.00017986,2]
[393364750,1762530661394,-151.0,0.00017986,2]
[393364751,1762530661435,-250.874312,0.00017986,2]
[393364752,1762530661474,-151.0,0.00017986,2]
[393364753,1762530661512,-151.0,0.00017986,2]
[393364754,1762530661553,-151.0,0.00017986,2]
[393364755,1762530661600,-151.0,0.00017986,2]
[393364756,1762530661641,-151.0,0.00017986,2]
[393364757,1762530661684,-151.0,0.00017986,2]
[393364758,1762530661722,-151.0,0.00017986,2]
[393364759,1762530661762,-151.0,0.00017986,2]
[393364760,1762530661802,-591.534039,0.00017986,2]
[393364761,1762530661840,-245.758129,0.00017986,2]
[393364762,1762530662072,-591.534039,0.00017986,2]
[393364763,1762530662116,-591.534039,0.00017986,2]
[393364764,1762530662155,-151.0,0.00017986,2]
[393364765,1762530662198,-591.534039,0.00017986,2]
[393364766,1762530662237,-305.232436,0.00017986,2]
[393364767,1762530662280,-151.0,0.00017986,2]
[393364768,1762530662321,-305.232436,0.00017986,2]
[393364769,1762530662362,-305.232436,0.00017986,2]
[393364770,1762530662402,-1000.0,0.00017989,2]
[393364771,1762530662441,-1000.0,0.00017989,2]
[393364772,1762530662480,-1000.0,0.00017989,2]
[393364773,1762530662523,-1000.0,0.00017989,2]
[393364774,1762530662561,-1000.0,0.00017989,2]
[393364775,1762530662600,-725.504,0.00017989,2]
[393364776,1762530662638,-4448.62288212,0.00017999,2]
[393364777,1762530662677,-333.0551169,0.00017999,2]
[393364778,1762530662715,-300.0,0.00017999,2]
[393364779,1762530662758,-300.0,0.00017999,2]
[393364780,1762530662798,-1000.0,0.00017999,2]
[393364781,1762530662837,-300.0,0.00017999,2]
[393364782,1762530662875,-671.49769143,0.00017999,2]
[393364783,1762530662917,-49419.06646028,0.00018,2]
[393364784,1762530662935,-254.0,0.00018,2]
[393364785,1762530662949,-254.0,0.00018,2]
[393364786,1762530662962,-254.0,0.00018,2]
[393364787,1762530662974,-435.68171857,0.00018,2]
[393364788,1762530662990,-151.0,0.00018,2]
[393364789,1762530663001,-151.0,0.00018,2]
[393364790,1762530663016,-250.874312,0.00018,2]
[393364791,1762530663031,-151.0,0.00018,2]
[393364792,1762530663047,-151.0,0.00017986,2]
[393364793,1762530663059,-151.0,0.00017986,2]
[393364794,1762530663072,-3.232436,0.00017986,2]
[393364795,1762530663083,-147.767564,0.00018,2]
[393364796,1762530663096,-151.0,0.00018,2]
[393364797,1762530663110,-151.0,0.00018,2]
[393364798,1762530663122,-151.0,0.00018,2]
[393364799,1762530663135,-151.0,0.00018,2]
[393364800,1762530663146,-435.68171857,0.00018,2]
[393364801,1762530663158,-245.758129,0.00018,2]
[393364802,1762530663170,-435.68171857,0.00018,2]
[393364803,1762530663217,399.99991673,0.00039025,30]
[393364804,1762530663259,-435.68171857,0.00018,2]
[393364805,1762530663282,-151.0,0.00018,2]
[393364806,1762530663309,-435.68171857,0.00018,2]
[393364807,1762530663326,-305.232436,0.00018,2]
[393364808,1762530663338,-151.0,0.00018,2]
[393364809,1762530663350,-305.232436,0.00018,2]
[393364810,1762530663365,-305.232436,0.00018,2]
[393364811,1762530663376,-435.68171857,0.00018,2]
[393364812,1762530663389,-435.68171857,0.00018,2]
[393364813,1762530663410,-435.68171857,0.00018,2]
[393364814,1762530663422,-435.68171857,0.00018,2]
[393364815,1762530663433,-435.68171857,0.00018,2]
[393364816,1762530663444,-435.68171857,0.00018,2]
[393364817,1762530663455,-435.68171857,0.00018,2]
[393364818,1762530663467,-333.0551169,0.00018,2]
[393364819,1762530663483,-300.0,0.00017985,2]
[393364820,1762530663495,-300.0,0.00018,2]
[393364821,1762530663509,-435.68171857,0.00018,2]
[393364822,1762530663526,-300.0,0.00018,2]
[393364823,1762530663537,-435.68171857,0.00018,2]
[393364824,1762530663548,-435.68171857,0.00018,2]
[393364825,1762530725399,500.0,0.00039025,30]
[393364826,1762530726028,500.0,0.00039025,30]
[393364827,1762530726641,500.0,0.00039025,30]
[393364828,1762530727257,500.0,0.00039025,30]
[393364829,1762530727897,500.0,0.00039025,30]
[393364830,1762530729200,500.0,0.00039025,30]
[393364831,1762530729830,500.0,0.00039025,30]
[393364832,1762530730470,500.0,0.00039025,30]
[393364833,1762530731562,500.0,0.00039025,30]
[393364834,1762530732180,500.0,0.00039025,30]
[393364835,1762530732805,500.0,0.00039025,30]
[393364836,1762530735369,277.35679052,0.00039025,30]
[393364843,1762531001444,2000.0,0.00039025,30]
[393364844,1762531021520,2000.0,0.00039025,30]
[393364845,1762531152898,160.91,0.000175,3]
[393364846,1762531186690,1195.50455797,0.00017999,5]
[393364847,1762531257869,-182.46659251,0.00016338,2]
[393364848,1762531257892,-150.10629847,0.00016437,2]
[393364849,1762531260992,-334.41649883,0.00016437,2]
[393364850,1762531263394,-281.97850504,0.00016437,2]
[393364851,1762531267361,-317.92166766,0.00016437,2]
[393364852,1762531270021,-115.57703,0.00016437,2]
[393364853,1762531270043,-48.16077397,0.00016437,2]
[393364854,1762531272379,-247.90875574,0.00016437,2]
[393364855,1762531273660,-3.93047029,0.00016437,2]
[393364856,1762531273683,-290.981863,0.00016438,2]
[393364857,1762531276267,-190.54289006,0.00016438,2]
[393364858,1762531278941,-18.47524694,0.00016438,2]
[393364859,1762531278964,-139.48120759,0.00016438,2]
[393364860,1762531280700,-188.25705184,0.00016438,2]
[393364861,1762531283323,-172.26174057,0.00016438,2]
[393364862,1762531283352,-80.69567166,0.00016438,2]
[393364863,1762531286647,-204.63344861,0.00016438,2]
[393364864,1762531290746,-164.17398784,0.00016438,2]
[393364865,1762531294110,-50.49689189,0.00016438,2]
[393364866,1762531294141,-119.9433263,0.00016438,2]
[393364867,1762531295759,-366.42155809,0.00016438,2]
[393364868,1762531298704,-13.63511561,0.00016438,2]
[393364869,1762531298727,-377.73012896,0.00016438,2]
[393364870,1762531304124,-122.26987104,0.00016438,2]
[393364871,1762531304150,-80.54622312,0.00016438,2]
[393364872,1762531306260,-335.64734647,0.00016438,2]
[393364873,1762531307815,-83.80643041,0.00016438,2]
[393364874,1762531307838,-118.97907221,0.00016438,2]
[393364875,1762531312921,-300.0,0.00016438,2]
[393364876,1762531315387,-81.02092779,0.00016438,2]
[393364877,1762531315409,-161.39132506,0.00016438,2]
[393364878,1762531332091,-154.95309387,0.00016437,2]
[393364879,1762531336491,-145.04690613,0.00016437,2]
[393364880,1762531336514,-71.68092763,0.00016438,2]
[393364881,1762531338516,-220.98199978,0.00016438,2]
[393364882,1762531341796,-45.94574753,0.00016438,2]
[393364883,1762531341820,-189.43556377,0.00016438,2]
[393364884,1762531344693,-201.64747327,0.00016438,2]
[393364885,1762531362199,-153.68862812,0.00016437,2]
[393364886,1762531366193,-157.51193249,0.00016437,2]
[393364887,1762531368582,-267.02318734,0.00016437,2]
[393364888,1762531370647,-186.39494075,0.00016437,2]
[393364889,1762531374021,-185.21470579,0.00016437,2]
[393364890,1762531377831,-170.00218383,0.00016437,2]
[393364891,1762531380932,-80.16442168,0.00016437,2]
[393364892,1762531380957,-108.91696296,0.00016438,2]
[393364893,1762531380980,-5.91861536,0.00016438,2]
[393364894,1762531383141,-163.33,0.00016438,2]
[393364895,1762531385927,-180.57687324,0.00016438,2]
[393364896,1762531387466,-150.1745114,0.00016438,2]
[393364897,1762531387490,-42.40289565,0.00016438,2]
[393364898,1762531390338,-172.37,0.00016356,2]
[393364899,1762531390362,-64.71614846,0.00016438,2]
[393364900,1762531398108,861.64895509,0.00039024,120]
[393364901,1762531407833,-313.93186834,0.00016438,2]
[393364902,1762531414369,-78.94908755,0.00016438,2]
[393364903,1762531414394,-119.66721262,0.00016438,2]
[393364904,1762531420693,-380.33278738,0.00016438,2]
[393364905,1762531420716,-16.15418099,0.00016438,2]
[393364906,1762531423983,-300.0,0.00016438,2]
[393364907,1762531426733,-183.84581901,0.00016438,2]
[393364908,1762531426756,-302.83462009,0.00016438,2]
[393364909,1762531430929,-196.14,0.00016438,2]
[393364910,1762531433082,-1.02537991,0.00016438,2]
[393364911,1762531433104,-244.37199697,0.00016438,2]
[393364912,1762531435193,-185.66605824,0.00016438,2]
[393364913,1762531452084,-69.96194479,0.00016438,2]
[393364914,1762531452107,-94.10506396,0.00016438,2]
[393364915,1762531454220,-250.0,0.00016438,2]
[393364916,1762531456789,-155.89493604,0.00016438,2]
[393364917,1762531456812,-195.0,0.00016438,2]
[393364918,1762531456835,-84.2564694,0.00016438,2]
[393364919,1762531459659,-280.78466071,0.00016438,2]
[393364920,1762531463893,-182.92101406,0.00016438,2]
[393364921,1762531482133,-87.78785583,0.00016438,2]
[393364922,1762531482159,-195.0,0.00016472,2]
[393364923,1762531482182,-65.61001978,0.00016513,2]
[393364924,1762531512738,-90.97998022,0.00016513,2]
[393364925,1762531512761,-226.09900572,0.00016571,2]
[393364926,1762531557159,-182.46659249,0.00016532,2]